Cogmind - Beta 11.1 @@@ ROGUE MODE // 2022.06.27 @ 15:16:25 Player: btmk16 Result: Destroyed by as-91983 with Assembled P-torch Performance ------------- Evolutions (3) 1500 Regions Visited (10) 2000 Robots Destroyed (50) 250 Value Destroyed (1653) 1653 Prototype IDs (17) 340 Alien Tech Used (0) 0 Bonus (849) 849 TOTAL SCORE: 6592 Bonus ------- Follower Combat Kills 259 Met Imprinter 300 Destroyed Z-Imprinter 1000 Triggered Deep Caves Wall 500 Exposed GOLEM Chamber 500 Friendly Fire -1710 Cogmind --------- Core Integrity 0/700 Matter 45/300 Energy 100/100 System Corruption 8% Temperature Cool (20) Movement Core (100) Ox1 Location -7/Deep Caves Parts ------- > --- POWER (2) -------- (None) > --- PROPULSION (2) --- (None) > --- UTILITY (7) ------ (None) > --- WEAPON (2) ------- Great Maul > --- INVENTORY (5) ---- Armored Huge Wheel Armored Huge Wheel High-capacity Matter Pod (200) Peak State ------------ > --- POWER ------------ Zionite Light DM Reactor Zionite Light DM Reactor > --- PROPULSION ------- Armored Huge Wheel > --- UTILITY ---------- Experimental Heat Sink Huge Storage Unit Advanced Energy Well Phase Shifter Improved Utility Shielding Zionite Light Carapace Hardlight Generator > --- WEAPON ----------- Zionite Laser-S Heavy Rocket Launcher > --- INVENTORY -------- Improved Ion Engine Improved Deuterium Engine Armored Huge Wheel Armored Huge Wheel Armored Huge Wheel High-capacity Matter Pod Trap Scanner Improved Sensor Array Experimental Sensor Array High-powered Tractor Beam Heavy EM Pulse Gun Heavy EM Pulse Gun Heavy EM Pulse Gun Heavy EM Pulse Gun Missile Launcher Missile Launcher Missile Launcher Missile Launcher Improved Datajack Great Maul Great Axe CR-A16's Pointy Stick [Rating: 75] Favorites ----------- Power Improved Ion Engine Engine Improved Ion Engine Reactor Zionite Light DM Reactor Propulsion Compact Wheel Treads Light Treads Leg Aluminum Leg Wheel Compact Wheel Utility Huge Storage Unit Device Improved Sensor Array Storage Huge Storage Unit Protection Improved Utility Shielding Weapon Gauss Cannon Energy Gun Heavy Particle Gun Energy Cannon Heavy Ion Cannon Ballistic Gun Light Assault Rifle Ballistic Cannon Gauss Cannon Launcher Heavy Rocket Launcher Impact Weapon Great Maul Slashing Weapon Great Axe Piercing Weapon CR-A16's Pointy Stick Special Melee Weapon Improved Datajack Build | -11 -10 -10 -10 -9 -8 -7 -7 -7 -7 -7 ------- Run | Scr Mat Min Exi Min Mat Fac Low Low Zio Dee Slots Evolved 6 | . . . . . 4 2 . . . . Power 1 | . . . . . 1 . . . . . Propulsion . | . . . . . . . . . . . Utility 5 | . . . . . 3 2 . . . . Weapon . | . . . . . . . . . . . Parts Attached 100 | . 15 . . . 25 11 3 3 11 32 Power 17 | . 4 . . . 5 1 . . . 7 Engine 12 | . 4 . . . 5 1 . . . 2 Core . | . . . . . . . . . . . Reactor 5 | . . . . . . . . . . 5 Propulsion 11 | . 4 . . . 4 1 . 1 . 1 Treads 1 | . 1 . . . . . . . . . Leg . | . . . . . . . . . . . Wheel 10 | . 3 . . . 4 1 . 1 . 1 Hover . | . . . . . . . . . . . Flight . | . . . . . . . . . . . Utility 25 | . 3 . . . 8 4 1 . 3 6 Device 18 | . 2 . . . 5 4 1 . 3 3 Storage 2 | . 1 . . . . . . . . 1 Processor . | . . . . . . . . . . . Hackware . | . . . . . . . . . . . Protection 5 | . . . . . 3 . . . . 2 Artifact . | . . . . . . . . . . . Weapon 47 | . 4 . . . 8 5 2 2 8 18 Energy Gun 13 | . . . . . 2 2 . . . 9 Energy Cannon 1 | . . . . . . 1 . . . . Ballistic Gun 10 | . 4 . . . 5 1 . . . . Ballistic Cannon 4 | . . . . . . 1 1 1 1 . Launcher 11 | . . . . . 1 . 1 1 3 5 Special Weapon . | . . . . . . . . . . . Impact Weapon 2 | . . . . . . . . . 1 1 Slashing Weapon 4 | . . . . . . . . . 2 2 Piercing Weapon 1 | . . . . . . . . . 1 . Special Melee Weapon 1 | . . . . . . . . . . 1 Unidentified Prototypes 10 | . . . . . 2 2 . . 2 4 Parts Lost 27 | . 2 . . . 6 . . 1 . 18 Power 5 | . 1 . . . . . . . . 4 Propulsion 8 | . 1 . . . 4 . . 1 . 2 Utility 7 | . . . . . 1 . . . . 6 Weapon 7 | . . . . . 1 . . . . 6 Highest Loss Streak 16 | . 1 . . . 3 . . 1 . 16 To Critical Strikes 1 | . . . . . . . . . . 1 Average Slot Usage (%) 95 | . 98 100 100 100 98 98 100 93 91 90 Engine 13 | . 13 14 14 14 18 15 15 15 15 3 Reactor 1 | . . . . . . . . . . 11 Wheel 13 | . 25 28 28 28 17 15 15 8 7 7 Device 29 | . 12 14 14 14 26 36 38 38 38 27 Storage 9 | . 14 14 14 14 9 7 7 7 7 12 Protection 6 | . . . . . 9 7 7 7 7 10 Energy Gun 2 | . . . . . 6 2 . . . 4 Energy Cannon 2 | . . . . . . 4 7 7 3 . Ballistic Gun 7 | . 28 28 28 28 11 1 . . . . Ballistic Cannon 3 | . . . . . . 5 3 6 5 2 Naked Turns . | . . . . . . . . . . . Heaviest Build 134 | 13 89 89 89 89 112 126 126 126 126 134 Greatest Support 32 | 20 32 26 26 26 26 26 26 28 28 28 Greatest Overweight (x) 10 | . 5 3 3 3 10 7 4 4 4 4 Average Overweight (x) 3 | . 2 3 3 3 3 4 4 4 3 3 Largest Inventory Capacity 25 | . 25 25 25 25 25 25 25 25 25 25 Average Capacity 24 | . 24 25 25 25 25 25 25 25 25 24 Most Carried 25 | . 25 25 25 25 25 25 25 25 25 25 Average Carried 23 | . 18 24 25 24 24 24 25 23 23 24 Final Capacity 25 | 8 25 25 25 25 25 25 25 25 25 5 Final Carried 25 | 6 24 25 25 25 25 25 25 23 23 5 Class Distribution -------------------- 50% | Scavenger-Mutant 49% | Mutant Dominant Class ---------------- Mutant | -10/Materials Scavenger-Mutant | -10/Mines Scavenger-Mutant | -10/Exiles Scavenger-Mutant | -9/Mines Scavenger-Mutant | -8/Materials Scavenger-Mutant | -7/Factory Scavenger-Mutant | -7/Lower Caves Mutant | -7/Lower Caves Mutant | -7/Zion Mutant | -7/Deep Caves Resources | -11 -10 -10 -10 -9 -8 -7 -7 -7 -7 -7 ----------- Run | Scr Mat Min Exi Min Mat Fac Low Low Zio Dee Matter Collected 1989 | 200 383 4 . 27 453 241 24 118 102 437 Remotely . | . . . . . . . . . . . Salvage Created 2306 | . 445 . . . 780 219 . 56 . 806 Parts 105 | . 38 . . . 35 9 . 5 . 18 Haulers Intercepted 3 | . 1 . . . 2 . . . . . Recyclers Shooed 4 | . 1 . . . 3 . . . . . Parts Field Recycled . | . . . . . . . . . . . Retrieved Matter . | . . . . . . . . . . . Parts Self-Destructed 6 | . . . . . . . . 6 . . Prevented . | . . . . . . . . . . . Kills | -11 -10 -10 -10 -9 -8 -7 -7 -7 -7 -7 ------- Run | Scr Mat Min Exi Min Mat Fac Low Low Zio Dee Combat Hostiles Destroyed 67 | . 9 . . . 11 5 . 4 . 38 Guns 21 | . 9 . . . 11 . . . . 1 Cannons 7 | . . . . . . 5 . 2 . . AOE 38 | . . . . . . . . 2 . 36 Classes Destroyed 16 | . 7 . . . 4 1 . . . 4 Worker 4 | . 3 . . . 1 . . . . . Builder 1 | . 1 . . . . . . . . . Tunneler 1 | . 1 . . . . . . . . . Hauler 3 | . 1 . . . 2 . . . . . Recycler 1 | . . . . . 1 . . . . . Watcher 1 | . 1 . . . . . . . . . Swarmer 6 | . 3 . . . . . . 3 . . Grunt 17 | . 6 . . . 7 4 . . . . Brawler 1 | . . . . . 1 . . . . . Sentry 2 | . . . . . 2 . . . . . Hunter 1 | . . . . . 1 . . . . . Programmer 2 | . . . . . . 1 . 1 . . Enhanced Grunt 1 | . . . . . . . . . . 1 Z-Light 4 | . . . . . . . . . . 4 Assembled 33 | . . . . . . . . . . 33 Golem 1 | . . . . . . . . . . 1 Thug 2 | . . . . . . . . . . 2 Butcher 1 | . . . . . . . . . . 1 Guerrilla 1 | . . . . . . . . . . 1 Best Kill Streak 33 | . 3 . . . 3 3 . 3 . 33 Combat Bots Only 33 | . 2 . . . 3 3 . 3 . 33 Max Kills in Single Turn 6 | . 1 . . . 2 1 . 1 . 6 Gunslinging . | . . . . . . . . . . . Exploded 6 | . . . . . . . . 1 . 6 Melee . | . . . . . . . . . . . Uniques/NPCs Destroyed 1 | . . . . . . . . . . 1 Z-Imprinter (-7/Deep Caves) Combat | -11 -10 -10 -10 -9 -8 -7 -7 -7 -7 -7 -------- Run | Scr Mat Min Exi Min Mat Fac Low Low Zio Dee Damage Taken 4305 | . 543 . . . 824 106 . 238 . 2594 Core 962 | . 103 . . . 155 11 . 51 . 642 Absorbed by Shields 288 | . . . . . . 16 . 8 . 264 Redirected to Shielding 113 | . . . . . 9 16 . 15 . 73 Core Remaining (%) 76 | 100 . . . 58 71 . . . . . Volleys Fired 208 | . 73 5 . 3 64 13 . 12 1 37 Largest 2 | . 2 2 . 2 2 2 . 2 1 2 Hottest 113 | . 40 40 . 40 99 113 . 113 48 90 Shots Fired 388 | . 145 10 . 6 127 23 . 23 1 53 Gun 312 | . 145 10 . 6 126 . . . . 25 Cannon 45 | . . . . . . 23 . 20 1 1 Launcher 31 | . . . . . 1 . . 3 . 27 Special . | . . . . . . . . . . . Kinetic 253 | . 145 10 . 6 67 13 . 10 1 1 Thermal 79 | . . . . . 59 10 . 10 . . Explosive 31 | . . . . . 1 . . 3 . 27 Electromagnetic 25 | . . . . . . . . . . 25 Robot Hit Streak 12 | . 12 4 . 2 11 7 . 8 . 7 Robot Miss Streak 7 | . 5 3 . 1 7 2 . 2 . 6 Penetration Max . | . . . . . . . . . . . Secondary Targets 1 | . . . . . 1 . . . . . Max Gunslinging Chain 1 | . . . . . 1 . . . . . Shots Hit Robots 247 | . 93 5 . 4 88 14 . 13 . 30 Core Hits 158 | . 34 . . 1 31 7 . 5 . 80 Critical Kills 2 | . 1 . . . 1 . . . . . Critical Parts Destroyed 2 | . . . . . 2 . . . . . Critical Strikes 9 | . 1 . . . 6 . . . . 2 Burn 3 | . . . . . 3 . . . . . Destroy 4 | . 1 . . . 3 . . . . . Corrupt 1 | . . . . . . . . . . 1 Sever 1 | . . . . . . . . . . 1 Melee Attacks 38 | . . . . . . . . . 27 11 Impact 25 | . . . . . . . . . 23 2 Slashing 12 | . . . . . . . . . 4 8 Piercing . | . . . . . . . . . . . Sneak Attacks 9 | . . . . . . . . . . 9 Combat Hostiles . | . . . . . . . . . . . Follow-up Attacks . | . . . . . . . . . . . Damage Inflicted 8429 | . 954 50 . 45 1495 423 . 587 . 4875 Guns 2688 | . 938 50 . 45 1451 . . . . 204 Cannons 774 | . . . . . . 423 . 351 . . Explosions 4354 | . . . . . . . . 236 . 4118 Melee 553 | . . . . . . . . . . 553 Ramming 60 | . 16 . . . 44 . . . . . Kinetic 2081 | . 938 50 . 45 731 182 . 135 . . Thermal 1293 | . . . . . 720 241 . 216 . 116 Explosive 4238 | . . . . . . . . 236 . 4002 Electromagnetic 204 | . . . . . . . . . . 204 Impact . | . . . . . . . . . . . Slashing 553 | . . . . . . . . . . 553 Piercing . | . . . . . . . . . . . Highest Corruption 8 | . . . . . 4 . . 1 1 8 Average Corruption 2 | . . . . . 3 . . 1 1 6 Corruption Purged . | . . . . . . . . . . . Corruption Blocked . | . . . . . . . . . . . Effects 28 | . . . . . 17 . . 7 2 2 Message Errors 9 | . . . . . 6 . . 1 1 1 Matter Fused 6 | . . . . . 5 . . . 1 . Heat Flow Errors 2 | . . . . . 1 . . . . 1 Energy Discharges 2 | . . . . . 1 . . 1 . . Data Loss (minor) 4 | . . . . . 1 . . 3 . . Data Loss (major) 1 | . . . . . . . . 1 . . Misfires 2 | . . . . . 1 . . 1 . . Weapon Failures 2 | . . . . . 2 . . . . . Overload Shots . | . . . . . . . . . . . Overflow Damage 351 | . . . . . . . . 37 . 314 Projectiles 37 | . . . . . . . . 37 . . Explosions 206 | . . . . . . . . . . 206 Melee 108 | . . . . . . . . . . 108 Knockbacks 3 | . . . . . . 1 . 2 . . Impact . | . . . . . . . . . . . Kinetic 3 | . . . . . . 1 . 2 . . Secondary . | . . . . . . . . . . . Self-Inflicted Damage 463 | . 7 . . . 22 . . 25 . 409 Shots 9 | . . . . . . . . 1 . 8 Rammed 3 | . 2 . . . 1 . . . . . Targets Rammed 3 | . 2 . . . 1 . . . . . Kicked . | . . . . . . . . . . . Crushed . | . . . . . . . . . . . Highest Temperature 351 | . 12 . . . 154 138 . 84 314 351 Average Temperature 63 | . 6 . . . 26 49 . 32 164 106 Received Heat Transfer 921 | . 198 . . . 369 42 . . . 312 Effects 4 | . . . . . . . . . . 4 Energy Bleed 1 | . . . . . . . . . . 1 Interference 3 | . . . . . . . . . . 3 Siege Activations . | . . . . . . . . . . . Robots Corrupted 1 | . . . . . . . . . . 1 Combat Hostiles 1 | . . . . . . . . . . 1 Parts Fried . | . . . . . . . . . . . Impact Corruptions . | . . . . . . . . . . . Robots Melted . | . . . . . . . . . . . Combat Hostiles . | . . . . . . . . . . . Parts Melted 2 | . . . . . 2 . . . . . Heat Transferred 2283 | . . . . . 1628 296 . 259 . 100 Parts Sabotaged . | . . . . . . . . . . . Parts Stolen . | . . . . . . . . . . . Parts Stripped . | . . . . . . . . . . . Power Chain Reactions 1 | . . . . . . . . . . 1 Missiles Intercepted . | . . . . . . . . . . . Alert | -11 -10 -10 -10 -9 -8 -7 -7 -7 -7 -7 ------- Run | Scr Mat Min Exi Min Mat Fac Low Low Zio Dee Peak Influence 254 | . 254 12 . . 164 112 . . . . Initial 43 | . . 12 . . . 43 . . . . Average 71 | . 119 12 . . 76 50 . . . . Maximum Alert Level 1 | . 1 . . . . . . . . . Low Security (%) 95 | . 85 100 . 100 100 100 . . . . Level 1 4 | . 14 . . . . . . . . . Level 2 . | . . . . . . . . . . . Level 3 . | . . . . . . . . . . . Level 4 . | . . . . . . . . . . . Level 5 . | . . . . . . . . . . . High Security . | . . . . . . . . . . . Max Security . | . . . . . . . . . . . Squads Dispatched 5 | . 2 . . . 1 2 . . . . Investigation . | . . . . . . . . . . . Extermination 1 | . . . . . . 1 . . . . Reinforcement 4 | . 2 . . . 1 1 . . . . Assault . | . . . . . . . . . . . Garrison . | . . . . . . . . . . . Intercept . | . . . . . . . . . . . Searches Triggered . | . . . . . . . . . . . Construction Impeded . | . . . . . . . . . . . Haulers Reinforced . | . . . . . . . . . . . Active Scanning Responses . | . . . . . . . . . . . Cargo Convoy Interrupts . | . . . . . . . . . . . Stealth | -11 -10 -10 -10 -9 -8 -7 -7 -7 -7 -7 --------- Run | Scr Mat Min Exi Min Mat Fac Low Low Zio Dee Distress Signals 3 | . 2 . . . 1 . . . . . Communications Jammed . | . . . . . . . . . . . Distress Signals . | . . . . . . . . . . . Times Spotted 110 | . 25 . . 2 21 7 . 4 . 51 Peak Tracking Total 30 | . 5 . . 4 5 3 . 3 . 30 Tactical Retreats 8 | . 3 . . . 3 . . . . 2 Traps | -11 -10 -10 -10 -9 -8 -7 -7 -7 -7 -7 ------- Run | Scr Mat Min Exi Min Mat Fac Low Low Zio Dee Traps Triggered 2 | . . . . . 1 1 . . . . Indirectly . | . . . . . . . . . . . Trap Hack Attempts . | . . . . . . . . . . . Triggered . | . . . . . . . . . . . Disarmed . | . . . . . . . . . . . Reprogrammed . | . . . . . . . . . . . Reused . | . . . . . . . . . . . Traps Extracted . | . . . . . . . . . . . Installed . | . . . . . . . . . . . Triggered . | . . . . . . . . . . . Machines | -11 -10 -10 -10 -9 -8 -7 -7 -7 -7 -7 ---------- Run | Scr Mat Min Exi Min Mat Fac Low Low Zio Dee Machines Disabled 5 | . . . . . 1 . . . . 4 Max in Single Turn 1 | . . . . . 1 . . . . 1 Garrison Access 1 | . . . . . . 1 . . . . Machines Sabotaged . | . . . . . . . . . . . Garrisons Compromised . | . . . . . . . . . . . Overloaded Fab Kills . | . . . . . . . . . . . Hacking | -11 -10 -10 -10 -9 -8 -7 -7 -7 -7 -7 --------- Run | Scr Mat Min Exi Min Mat Fac Low Low Zio Dee Machines Accessed 14 | . 3 . 1 . 5 4 1 . . . Terminals 10 | . 3 . . . 5 2 . . . . Fabricators 1 | . . . . . . 1 . . . . Repair Stations . | . . . . . . . . . . . Recycling Units . | . . . . . . . . . . . Scanalyzers . | . . . . . . . . . . . Garrison Access 1 | . . . . . . 1 . . . . Total Hacks 25 | . 7 . 1 . 11 5 1 . . . Successful 15 | . 4 . 1 . 6 3 1 . . . Failed 9 | . 3 . . . 4 2 . . . . Catastrophic . | . . . . . . . . . . . Database Lockouts 1 | . . . . . 1 . . . . . Manual 8 | . 1 . . . 6 . . . 1 . Terminals 20 | . 7 . . . 11 2 . . . . Fabricators 2 | . . . . . . 2 . . . . Repair Stations . | . . . . . . . . . . . Recycling Units . | . . . . . . . . . . . Scanalyzers . | . . . . . . . . . . . Garrison Access 1 | . . . . . . 1 . . . . Terminal Hacks 11 | . 3 . 1 . 5 1 1 . . . Record 1 | . . . 1 . . . . . . . Robot Analysis 1 | . . . . . 1 . . . . . Open Door 1 | . . . . . . . 1 . . . Branch Access Points 2 | . . . . . 1 1 . . . . Recycling Unit Index 1 | . . . . . 1 . . . . . Alert Level 1 | . . . . . 1 . . . . . Hauler Manifests 3 | . 2 . . . 1 . . . . . Zone Layout 1 | . 1 . . . . . . . . . Fabricator Hacks 1 | . . . . . . 1 . . . . Network Status 1 | . . . . . . 1 . . . . Repair Station Hacks . | . . . . . . . . . . . Recycling Unit Hacks . | . . . . . . . . . . . Scanalyzer . | . . . . . . . . . . . Garrison Access Hacks 1 | . . . . . . 1 . . . . Seal Access 1 | . . . . . . 1 . . . . Unauthorized Hacks 2 | . 1 . . . 1 . . . . . Terminals 2 | . 1 . . . 1 . . . . . Track 1 | . . . . . 1 . . . . . Botnet 1 | . 1 . . . . . . . . . Fabricators . | . . . . . . . . . . . Repair Stations . | . . . . . . . . . . . Recycling Units . | . . . . . . . . . . . Scanalyzers . | . . . . . . . . . . . Garrison Access . | . . . . . . . . . . . Data Cores Recovered . | . . . . . . . . . . . Used . | . . . . . . . . . . . Hacking Detections 10 | . 3 . . . 5 2 . . . . Full Trace Events . | . . . . . . . . . . . Feedback Events . | . . . . . . . . . . . Feedback Blocked . | . . . . . . . . . . . Robot Schematics Acquired 4 | . . . . . . . . . 4 . Robots Built . | . . . . . . . . . . . Authchips . | . . . . . . . . . . . Time . | . . . . . . . . . . . Total Robot Build Rating . | . . . . . . . . . . . Part Schematics Acquired 15 | . . . . . . . . . 15 . Parts Built . | . . . . . . . . . . . Authchips . | . . . . . . . . . . . Time . | . . . . . . . . . . . Total Part Build Rating . | . . . . . . . . . . . Parts Repaired . | . . . . . . . . . . . Time . | . . . . . . . . . . . Parts Recycled . | . . . . . . . . . . . Recycled Matter . | . . . . . . . . . . . Retrieved Matter . | . . . . . . . . . . . Retrieved Components . | . . . . . . . . . . . Parts Scanalyzed . | . . . . . . . . . . . Part Schematics Acquired . | . . . . . . . . . . . Parts Damaged . | . . . . . . . . . . . Bothacking | -11 -10 -10 -10 -9 -8 -7 -7 -7 -7 -7 ------------ Run | Scr Mat Min Exi Min Mat Fac Low Low Zio Dee Used RIF Installer . | . . . . . . . . . . . Robots Hacked 1 | . . . . . . . . . . 1 Non-combat . | . . . . . . . . . . . Combat 1 | . . . . . . . . . . 1 Robot Hacks Applied 1 | . . . . . . . . . . 1 parse_system 1 | . . . . . . . . . . 1 Relay Couplers Released . | . . . . . . . . . . . Fabnet Peak Effective % . | . . . . . . . . . . . Robots Rewired . | . . . . . . . . . . . Allies Hacked . | . . . . . . . . . . . Hacks Repelled . | . . . . . . . . . . . Allies | -11 -10 -10 -10 -9 -8 -7 -7 -7 -7 -7 -------- Run | Scr Mat Min Exi Min Mat Fac Low Low Zio Dee Total Allies 9 | . . 1 . . . . . . 7 1 Largest Group 8 | . . 1 . . . . . . 7 8 Highest-Rated Group 462 | . . 31 . . . . . . 343 462 Highest-Rated Ally 119 | . . 31 . . . . . . 96 119 Total Orders . | . . . . . . . . . . . Ally Attacks 94 | . . . . . . . . . . 94 Total Damage 3674 | . . . . . . . . . . 3674 Kills 16 | . . . . . . . . . . 16 Allies Corrupted . | . . . . . . . . . . . Allies Melted . | . . . . . . . . . . . Intel | -11 -10 -10 -10 -9 -8 -7 -7 -7 -7 -7 ------- Run | Scr Mat Min Exi Min Mat Fac Low Low Zio Dee Robot Analysis Total 1 | . . . . . 1 . . . . . Derelict Logs Recovered 4 | . . . . . . . 1 2 1 . Drone Launches . | . . . . . . . . . . . Drone Recoveries . | . . . . . . . . . . . Exploration | -11 -10 -10 -10 -9 -8 -7 -7 -7 -7 -7 ------------- Run | Scr Mat Min Exi Min Mat Fac Low Low Zio Dee Turns Passed 10167 | . 1226 295 189 374 1453 995 660 1128 2187 1660 Spaces Moved 5913 | 1 718 207 141 269 678 610 438 689 1278 884 Core . | . . . . . . . . . . . Treads . | . . . . . . . . . . . Legs 45 | 1 44 . . . . . . . . . Wheels 5868 | . 674 207 141 269 678 610 438 689 1278 884 Hover . | . . . . . . . . . . . Flight . | . . . . . . . . . . . Fastest Speed 100 | 120 120 135 135 135 135 150 150 150 145 100 Average Speed 150 | 120 133 135 135 135 146 150 150 158 159 159 Slowest Speed 230 | 120 175 135 135 135 230 205 150 160 160 160 Overloaded Moves . | . . . . . . . . . . . Propulsion Burnouts . | . . . . . . . . . . . Robots Hopped . | . . . . . . . . . . . Cave-ins Triggered . | . . . . . . . . . . . Exploration Rate (%) 55 | 1 95 37 53 62 48 14 60 68 86 85 Regions Visited 10 Branch Regions 7 Pre-discovered Areas 1 | . . . 1 . . . . . . . Known Exits Taken 1 | . . . . . . 1 . . . . Unknown Exits Taken 9 | 1 1 1 1 1 1 . 1 1 1 . Scrap Searched 7 | . . 1 . 1 . . 1 2 2 . Spaces Dug 16 | . . . . . 10 2 . 1 3 . Terrain Destroyed 150 | . . . . . 10 5 . 30 3 102 Melee 3 | . . . . . . . . . 3 . Projectile 13 | . . . . . . 5 . 7 . 1 AOE 134 | . . . . . 10 . . 23 . 101 Terrain Rammed . | . . . . . . . . . . . Walls Destroyed . | . . . . . . . . . . . Machines Disabled . | . . . . . . . . . . . Actions | -11 -10 -10 -10 -9 -8 -7 -7 -7 -7 -7 --------- Run | Scr Mat Min Exi Min Mat Fac Low Low Zio Dee Total 6761 | . 864 213 140 275 1033 666 441 704 1365 1060 Wait 375 | . 16 . . . 217 22 . . 40 80 Move 5903 | . 717 206 140 268 677 609 437 688 1277 884 Hop . | . . . . . . . . . . . Pick Up 57 | . 26 1 . 2 20 3 . . 2 3 Fast Attach 27 | . 2 . . . 8 8 . . 3 6 Attach 20 | . 2 . . . 8 2 . 1 . 7 Detach 5 | . 1 . . . . 1 . . 2 1 Swap 53 | . 11 . . . 9 1 3 2 8 19 Drop 71 | . 14 . . 2 29 7 1 1 5 12 Fire 208 | . 73 5 . 3 64 13 . 12 1 37 Melee 38 | . . . . . . . . . 27 11 Ram 3 | . 2 . . . 1 . . . . . Kick . | . . . . . . . . . . . Crush . | . . . . . . . . . . . Escape Stasis . | . . . . . . . . . . . Rewire 1 | . . 1 . . . . . . . . Trap . | . . . . . . . . . . . Miscellaneous . | . . . . . . . . . . . Route ------- -11/Scrapyard -10/Materials (discovered 5 exits: [*Mat x3] / [*Min x2]) -10/Mines -10/Exiles -9/Mines -8/Materials -7/Factory (discovered 6 exits: [*Fac x2] / Sto x2 / *Low x2) -7/Lower Caves -7/Lower Caves (discovered 2 exits: [*Fac] / *Zio) -7/Zion (discovered 2 exits: [*Dee] / [*Pro]) -7/Deep Caves (discovered 1 exit: [*Pro]) History --------- Turn | Location | Event 1 | -11/Scrapyard | Discovered new exit (range 0) 1 | -11/Scrapyard | Entered Materials 163 | -10/Materials | Discovered new exit (range 13) 312 | -10/Materials | Build established: Mutant 735 | -10/Materials | Discovered new exit (range 11) 784 | -10/Materials | Discovered new exit (range 16) 956 | -10/Materials | Build established: Scavenger-Mutant 973 | -10/Materials | Discovered new exit (range 4) 1155 | -10/Materials | Discovered new exit (range 15) 1227 | -10/Materials | Entered Mines 1230 | -10/Mines | Received a Mining Laser from a helpful Derelict 1472 | -10/Mines | Found a hidden stash of uninstalled traps 1516 | -10/Mines | Deemed a non-threat by the Exiles lab entrance 1516 | -10/Mines | Discovered new exit (range 5) 1522 | -10/Mines | Entered Exiles 1559 | -10/Exiles | Met 8R-AWN 1576 | -10/Exiles | Met EX-HEX 1628 | -10/Exiles | Met EX-DEC 1651 | -10/Exiles | Learned location of Zion (-7) 1694 | -10/Exiles | Discovered new exit (range 10) 1711 | -10/Exiles | Entered Mines 1763 | -9/Mines | Assembled infested the area 1768 | -9/Mines | Assisted by a Guerilla fighting off Assembled 1771 | -9/Mines | Found a damaged Exp. Sensor Array with a note attached 1776 | -9/Mines | Found Prototype Device 2073 | -9/Mines | Discovered new exit (range 9) 2085 | -9/Mines | Entered Materials 2085 | -8/Materials | Evolved 4 slots: Power x1, Utility x3 2704 | -8/Materials | Lost 3 parts (1n1u1w) 2718 | -8/Materials | Central database locked down 2837 | -8/Materials | Discovered new exit (range 5) 3538 | -8/Materials | Entered Factory 3538 | -7/Factory | Evolved 2 slots: Utility x2 4173 | -7/Factory | Discovered new exit (range 3) 4224 | -7/Factory | Identified exit to Storage 4224 | -7/Factory | Identified exit to Lower Caves 4401 | -7/Factory | Discovered new exit (range 11) 4533 | -7/Factory | Entered Lower Caves 4915 | -7/Lower Caves | Encountered a Warlord checkpoint 4925 | -7/Lower Caves | Discovered new exit (range 3) 4952 | -7/Lower Caves | Learned 4 Factory zone layouts 5193 | -7/Lower Caves | Entered another Lower Caves area 5276 | -7/Lower Caves | Discovered new exit (range 7) 5277 | -7/Lower Caves | Learned Factory terminal intel 5337 | -7/Lower Caves | Encountered a Warlord checkpoint 5474 | -7/Lower Caves | Learned 12 Factory zone layouts 5685 | -7/Lower Caves | Build established: Mutant 6211 | -7/Lower Caves | Discovered new exit (range 6) 6321 | -7/Lower Caves | Entered Zion 6400 | -7/Zion | Received a hallucinogenic algorithm 6457 | -7/Zion | Given A8's code to call for help 6504 | -7/Zion | Discovered new exit (range 16) 6635 | -7/Zion | System corruption cleaned by Quarantine Array 6713 | -7/Zion | Enhanced Grunt warped into view, answering call for help 6715 | -7/Zion | Enhanced Grunt warped into view, answering call for help 7180 | -7/Zion | Learned 4 Factory zone layouts 7278 | -7/Zion | Gained Derelict followers 7410 | -7/Zion | Found Prototype Launcher 7410 | -7/Zion | Identified Gui. Missile Launcher 7594 | -7/Zion | Identified Exp. Sensor Array 7670 | -7/Zion | Found CR-A16's Pointy Stick 7767 | -7/Zion | Given the Hacking Drone Bay 8257 | -7/Zion | Discovered new exit (range 4) 8260 | -7/Zion | Saw the warning signs outside the Deep Caves entrance 8508 | -7/Zion | Entered Deep Caves 8508 | -7/Deep Caves | Accompanied by 7 allies 8510 | -7/Deep Caves | Met 5H-AD0 8755 | -7/Deep Caves | Z-Facility disabled 8797 | -7/Deep Caves | Attacked by Z-Imprinter 8801 | -7/Deep Caves | Allies destroyed Z-Imprinter 9664 | -7/Deep Caves | Discovered new exit (range 6) 9983 | -7/Deep Caves | Spotted as-75870 10018 | -7/Deep Caves | Core integrity fell below 50% 10026 | -7/Deep Caves | Destroyed as-75870 10073 | -7/Deep Caves | Triggered Deep Caves wall 10162 | -7/Deep Caves | Exposed GOLEM chamber 10162 | -7/Deep Caves | Spotted AS-94986 10166 | -7/Deep Caves | Destroyed 33 combat bots 10166 | -7/Deep Caves | Core integrity fell below 20% 10168 | -7/Deep Caves | Destroyed by as-91983 with Assembled P-torch Last Messages --------------- 10146_ Imp. Deuterium Engine destroyed. 10146_ System corrupted by crushing effect (+3). 10147_ Overheating: Energy bleed (-11). 10149_ Hvy. EM Pulse Gun destroyed. 10149_ System corrupted by crushing effect (+4). 10149_ Knocked back. 10149_ Dropped Huge Storage Unit. 10151_ System corrupted: Heat flow error (+110). 10151_ Acquired Great Maul. 10152_ Knocked back. 10161_ as-91983 released from Mobile Assembly Unit. 10162_ Wall Chamber breached. 10162_ A GOLEM Unit tumbles out of the Wall Chamber. 10164_ GOLEM Unit springs to life. 10164_ Imp. Ion Engine destroyed. 10164_ System corrupted by crushing effect (+1). 10165_ as-12973 GOLEM Unit beginning Prototype Leg integration. 10165_ Arm. Huge Wheel destroyed. 10165_ A GOLEM Unit tumbles out of the Wall Chamber. 10166_ O&XYHHCTTFQASCLC1TK&WUOI4DI2MPPQP#A#A7 Map ----- +----------------------------------------------------+ | ?????????????????????????????????? | | ?????????????????????????????????? | | ???????????????????????????????### | | ???????????????????????????????# | | ???????????????????????????????# | | ???????????????????????????????# | | ???????????????????????????????# | | ???????????????????????????????## | | ????????????????????????????????## | | ?????????????????????????????????? | | ?????????????????????????????????? | | ????????????? ???????????????????? | | ???????????? * ????????????????? | | ?????????? * ??????????????? | | ????????? * ????????????? | | ????????? ???? ??????? | | ????????? M = ?????? | | ????????? == ?????? | | ????????? A #????? | | ????????? #???## | | ?????????" = #???# | | ?????????" #???# | | ?????????"a #???# | | ???????""" ##??# | | ???????"!Ga ] #??# | | ????????#@a #?## | | ????????"aaa ### | | ????????" ] ] ## | | ????????" = ] | | ????????""" | | ????????" = | | ????????"" b ##### | | ????????" #???# | | ????????""!] ##???? | | ????????" /] "%" #????? | | ????????"]/!!] #### "" "" ##????? | | ????????"""!! #??# "" ""##?????? | | ?????????" / ##### "##??????? | | ?????????##########????###???????? | | | | | | | | | | | | | | | | | | | | | | | +----------------------------------------------------+ Best States ------------- Heat Dissipation 60 Energy Generation 49 Energy Capacity 825 Matter Stores 300 Matter Capacity 300 Sight Range 16 Robot Scan Range 15 Terrain Scan Density 10 Armor Coverage 400 Utility Shielding 66 Weapon Shielding 33 Phase Shifting 5 Evasion (%) 55 Recoil Reduction 1 Matter Filtering 30 Item Schematics ----------------- Imp. Carbon-fiber Leg | -7/Zion | Archive Energy Well | -7/Zion | Archive Spk. Medium Treads | -7/Zion | Archive Armor Integrity Analyzer | -7/Zion | Archive Adv. Sensor Array | -7/Zion | Archive Recalibrator | -7/Zion | Archive Imp. Launcher Guidance Computer | -7/Zion | Archive Hpw. Shock Rifle | -7/Zion | Archive Mak. Laser | -7/Zion | Archive Adv. Assault Cannon | -7/Zion | Archive Adv. Heat Sink | -7/Zion | Archive Mak. Axe | -7/Zion | Archive Lgt. Angular Momentum Engine | -7/Zion | Archive Mak. Armor Plating | -7/Zion | Archive Point Defense System | -7/Zion | Archive Robot Schematics ------------------ Y-54 Guardian | -7/Zion | Archive R-06 Scavenger | -7/Zion | Archive T-07 Excavator | -7/Zion | Archive D-83 Annihilator | -7/Zion | Archive Fabricated ------------ Nothing Alien Tech Used ----------------- None Achievements -------------- None Challenges ------------ None Game ------ Seed GreatThrowingMinigun Manual? 0 Play Time 00:54:19 Cumulative 349.2 hours Start 2022.06.27 @ 14:02:55 End 2022.06.27 @ 15:16:25 Sessions 1 Manual Loads 0 Difficulty Rogue Special Mode None Game No. 424 Rogue 423 Adventurer 0 Explorer 1 Win Type - Total 9 Types 6/0/1/2/0/0/0/0/0 Lore% 73 Gallery% 84 Achievement% 61 Wizard Run 0 Options --------- ASCII 0 Keyboard 1 Movement Vi Keybinds 0 Fullscreen 1 Font 18/SmallcapsGlow Map View 76x50 Tactical HUD 1 Map Filters NONE Filters NONE Steam 1 RUN: aedca3d4-dfd7-438f-8188-50195555100c